{"text_format":"1","workbook":"xlsx","n_sheets":13,"sheets":["Acceuil","Budget","CC","CA","CV","CP","Cadres de Concertation","Tutelle","Marchés","Services Délégués","Autres données","Récapitulatif","Indicateurs"],"not_rendered":{"charts":0,"images":2,"macros":1,"external_links":0,"defined_names":0,"comments":0,"pivot_tables":0},"unopened":[],"bounds":{"document_bytes":16777216,"sheet_cells":100000,"rows_first":2000,"rows_last":500,"rows_between":2000,"halvings":0,"cell_chars":16384,"cell_head_chars":4096},"cells_cut":0,"cells_raw":0,"read":"whole","date_system":"1900"}

{"sheet":"Acceuil","index":0,"n_rows":23,"n_cols":16,"rows_kept":23,"cut":false,"hidden":false,"merged":[[6,4,6,18],[7,4,7,18],[9,4,9,18],[16,4,16,18]]}
[]
[]
[]
[]
[]
[]
[null,null,null,null,"COMITE INTERMINISTERIEL DE PILOTAGE DE LA POLITIQUE NATIONALE DE DECENTRALISATION ET DE DECONCENTRATION \n(CIP-PONADEC)"]
[null,null,null,null,"SECRETARIAT PERMANENT"]
[]
[null,null,null,null,"Calcul de l'Indice de bonne Gouvernance Locale (IGL)"]
[]
[null,null,null,null,null,"Département ","ALIBORI",null,"Commune ","BANIKOARA",null,null,null,null,"Année : ",2022]
[]
[]
[]
[]
[null,null,null,null,"Informations à saisir par catégorie"]
[]
[null,null,null,null,null,null,"Budget",null,null,null,null,"Cadres de Concertation"]
[null,null,null,null,null,null,"Conseil Communal",null,null,null,null,"Tutelle"]
[null,null,null,null,null,null,"Conseil d'Arrondissement",null,null,null,null,"Marchés"]
[null,null,null,null,null,null,"Conseil de Village",null,null,null,null,"Services délégués"]
[null,null,null,null,null,null,"Commissions Permanentes",null,null,null,null,"Autres données"]

{"sheet":"Budget","index":1,"n_rows":5,"n_cols":14,"rows_kept":5,"cut":false,"hidden":false,"merged":[[1,0,1,2],[1,3,1,9],[1,10,1,13],[2,3,2,5],[2,0,3,0],[2,1,3,1],[2,2,3,2],[2,6,3,6],[2,7,3,7],[2,8,3,8],[2,9,3,9],[2,10,3,10],[2,11,3,11],[2,12,3,12],[2,13,3,13]]}
["Retour à l'accueil"]
["Prévision",null,null,"Réalisation",null,null,null,null,null,null,"Autres données financieres"]
["Montant du budget ","Recette fiscales","PAI","Dépenses d'investissement",null,null,"Dépenses totales de fonctionnement","Dépenses d'entretien des équipements et ouvrages","Recettes fiscales ","PAI ","Montant des ressources propres de l'année 2021","Montant des ressources propres de l'année 2022","Montant des cotisations versées à échéance (Intercommunalité et Association de communes)","Montant des cotisations dues à échéance (Intercommunalité et Association de communes)"]
[null,null,null,"Ressources propres (Auto financement)","Investissement provenant de la coopération décentralisée","Autres ressources"]
[2614941026,484894647,1580715372,663708231,0,917007141,591290767,15400000,608931929,1580715372,662517614,616990647,14500000,14500000]

{"sheet":"CC","index":2,"n_rows":9,"n_cols":9,"rows_kept":9,"cut":false,"hidden":false,"merged":[[0,0,0,5],[1,0,1,5],[2,0,2,2],[2,4,3,5],[3,0,3,2]]}
["Retour à l'accueil"]
["Tenue des Sessions ordinaires "]
["Nombre de réunions de municipalité tenues",null,null,10]
["Nombre d'élus du Conseil Communal",null,null,33]
["Sessions","Nombre d'élus présents","Date début session","Date fin session","Date affichage relevé session","Production du rapport d'activités du Maire ",null,"dif","delai"]
["Session N°1",30,"2022-03-01","2022-03-09","2022-03-09","OUI",null,{"$f":"IF(OR(D6=\"\",E6=\"\"),-1,DATEDIF(D6,E6,\"d\"))","v":0},{"$f":"IF(OR(H6<0,H6>8),0,1)","v":1}]
["Session N°2",30,"2022-04-26","2022-04-27","2022-04-27","OUI",null,{"$f":"IF(OR(D7=\"\",E7=\"\"),-1,DATEDIF(D7,E7,\"d\"))","v":0},{"$f":"IF(OR(H7<0,H7>8),0,1)","v":1}]
["Session N°3",32,"2022-07-28","2022-07-28","2022-07-28","OUI",null,{"$f":"IF(OR(D8=\"\",E8=\"\"),-1,DATEDIF(D8,E8,\"d\"))","v":0},{"$f":"IF(OR(H8<0,H8>8),0,1)","v":1}]
["Session N°4",32,"2022-10-26","2022-10-27","2022-10-27","OUI",null,{"$f":"IF(OR(D9=\"\",E9=\"\"),-1,DATEDIF(D9,E9,\"d\"))","v":0},{"$f":"IF(OR(H9<0,H9>8),0,1)","v":1}]

{"sheet":"CA","index":3,"n_rows":12,"n_cols":2,"rows_kept":12,"cut":false,"hidden":false,"merged":[[0,0,0,1]]}
["Retour à l'accueil"]
["Arrondissements","Nombre de sessions de conseils d’arrondissement tenues"]
["FOUNOUGO",9]
["GOMPAROU",10]
["GOUMORI",4]
["KOKEY",9]
["KOKIBOROU",10]
["OUNET",4]
["SOMPEROUKOU",2]
["SOROKO",12]
["TOURA",4]
["BANIKOARA",4]

{"sheet":"CV","index":4,"n_rows":116,"n_cols":5,"rows_kept":116,"cut":false,"hidden":false,"merged":[[0,0,0,9],[2,3,2,4],[1,3,1,4],[1,2,3,2],[1,0,3,0],[1,1,3,1],[4,0,22,0],[23,0,35,0],[36,0,50,0],[51,0,57,0],[58,0,62,0],[63,0,70,0],[71,0,81,0],[82,0,87,0],[88,0,97,0],[98,0,115,0]]}
["Retour à l'accueil"]
["Arrondissements","Villages","Nombre de réunions de conseils de village tenues au cours de l’année","Section Villagoise\\urbaine de Gestion Fonctiere (SVGF et SUGF)"]
[null,null,null,"Enquetes Publiques Contradictoires (EPC)"]
[null,null,null,"Nombre de demandes effectuées","Nombre de demandes réalisées"]
["FOUNOUGO","BOFOUNOU",0,0,0]
[null,"FOUNOUGO-BOUTERA",0,0,0]
[null,"FOUNOUGO-GAH",0,0,0]
[null,"FOUNOUGO-GOROBANI",1,0,0]
[null,"GAMA",0,5,3]
[null,"GAMERE-ZONGO",1,0,0]
[null,"GOUGNIROU",1,0,0]
[null,"GOUGNIROU-GAH",0,0,0]
[null,"IBOTO",0,0,0]
[null,"IGRIGOU",1,3,2]
[null,"KANDEROU",1,1,1]
[null,"KANDEROU-KOTCHERA",0,2,1]
[null,"KONEY",0,0,0]
[null,"KPAKO-GBABI",0,0,0]
[null,"POGOUSSOROU",1,4,2]
[null,"SAMPETO",0,0,0]
[null,"SISSIANGANROU",1,0,0]
[null,"YANGUERI",1,2,1]
[null,"YINYINPOGOU",0,2,2]
["GOMPAROU","BONHANROU",3,5,4]
[null,"GNAMBANOU",4,3,2]
[null,"GOMPAROU",0,0,0]
[null,"GOMPAROU GOUSSINROU",3,0,0]
[null,"GOMPAROU-GOKPADOU",3,0,0]
[null,"GOURE-EDE",3,0,0]
[null,"KALI",3,1,1]
[null,"KPESSANROU",3,3,2]
[null,"NIEKOUBANTA",3,2,2]
[null,"PAMPIME",3,2,0]
[null,"SIONKPEKOKA",3,1,0]
[null,"TIGANSON",3,0,0]
[null,"YOSSINANDE",3,2,1]
["GOUMORI","BONNI",1,2,1]
[null,"BONTE",0,3,1]
[null,"DOMBOURE",1,0,0]
[null,"DOMBOURE-GAH",0,4,3]
[null,"DONDAGOU",0,0,0]
[null,"GBANGBANGA",1,0,0]
[null,"GBASSA",0,5,3]
[null,"GOUMORI-BAYEDOU",0,0,0]
[null,"GOUMORI-GAH",0,0,0]
[null,"GOUMORI-GBISSAROU",1,0,0]
[null,"MONDOUKOKA",0,0,0]
[null,"MONDOUKOKA-GAH",0,2,2]
[null,"SAKASSINNOU",1,0,0]
[null,"SATOUBA",0,3,2]
[null,"TIHOURE",0,1,1]
["KOKEY","GAMAROU",2,5,4]
[null,"KOKEY-FILO",2,0,0]
[null,"KOKEY-SINAKPAROU",1,0,0]
[null,"NIMBERE",1,3,2]
[null,"PIGUIRE",1,4,2]
[null,"SONWARI",2,5,3]
[null,"YAMBEROU",2,4,4]
["KOKIBOROU","BONKERE",1,2,1]
[null,"GUINNINGOU-GAH",1,2,2]
[null,"KOKIBOROU",1,0,0]
[null,"SIRIKOU",1,0,0]
[null,"SOUNSOUN",1,6,3]
["OUNET","BONIKI",0,5,4]
[null,"KIHOUHOU",0,1,1]
[null,"KPEBOROGOU",0,2,2]
[null,"OUNET-GAH",0,0,0]
[null,"OUNET-SEKOGBAOUROU",0,0,0]
[null,"OUNET-SINAKPAROU",0,0,0]
[null,"SONNOU",0,3,3]
[null,"SONNOU-GAH",0,4,4]
["SOMPEROUKOU","BONYANGOU",1,4,4]
[null,"BOURIN",0,2,2]
[null,"GNANDAROU",1,4,4]
[null,"KEGAMOROU",1,0,0]
[null,"POTO",1,7,5]
[null,"POTO-GAH",1,0,0]
[null,"SIMPEROU",1,5,5]
[null,"SIMPEROU-GAH",1,3,3]
[null,"SOMPEROUKOU-GAH",1,0,0]
[null,"SOMPEROUKOU-GBESSARA",1,0,0]
[null,"SOMPEROUKOU-YOROUNON",1,0,0]
["SOROKO","GBENIKI",0,8,8]
[null,"MEKROU",0,6,6]
[null,"SOROKO",1,0,0]
[null,"SOROKO GAH",0,5,5]
[null,"SOROKO YOROUNON",1,0,0]
[null,"SOUDOU",0,6,6]
["TOURA","ATABENOU",1,10,10]
[null,"GNAMBOURANKOROU",1,4,3]
[null,"GUIMBAGOU",1,9,9]
[null,"KAKOUROGOU",1,1,1]
[null,"SIWOUGOUROU",0,0,0]
[null,"TINTINMOU",1,2,2]
[null,"TINTINMOU-GAH",1,0,0]
[null,"TOURA GAH",1,1,1]
[null,"TOURA-BIO N'WOROU",1,0,0]
[null,"TOURA-YOKPAROU",1,0,0]
["BANIKOARA","ARBONGA",2,10,10]
[null,"AVIATION",1,0,0]
[null,"BATRAN",1,7,6]
[null,"DEMANOU",1,0,0]
[null,"DEROU GAROU",0,0,0]
[null,"GLEGBABI",0,0,0]
[null,"GUIGUIRI",0,3,2]
[null,"KINGAROU",0,3,3]
[null,"KOKIRE",1,0,0]
[null,"KOMMON",1,0,0]
[null,"KORI GUIGUIRI",2,2,1]
[null,"KPAGAGUEDOU",1,0,0]
[null,"OROU GNONROU",0,0,0]
[null,"SAMANGA",2,2,2]
[null,"TOKEY-BANTA",1,0,0]
[null,"WAGOU",1,0,0]
[null,"WETEROU",1,0,0]
[null,"YADIKPAROU",1,0,0]

{"sheet":"CP","index":5,"n_rows":16,"n_cols":42,"rows_kept":16,"cut":false,"hidden":false,"merged":[[2,1,3,1],[2,2,3,2],[1,0,1,2],[1,3,1,38],[2,3,2,5],[2,6,2,8],[2,9,2,11],[2,12,2,14],[2,15,2,17],[2,18,2,20],[2,21,2,23],[2,24,2,26],[2,27,2,29],[2,30,2,32],[2,33,2,35],[2,36,2,38],[2,0,3,0]]}
["Retour à l'accueil"]
["Tenue des sessions ordinaires des commissions permanentes"]
["Commissions permanentes (CP)","Nom de la commission","Effectif des membres ","Réunion N°1",null,null,"Réunion N°2",null,null,"Réunion N°3",null,null,"Réunion N°4",null,null,"Réunion N°5",null,null,"Réunion N°6",null,null,"Réunion N°7",null,null,"Réunion N°8",null,null,"Réunion N°9",null,null,"Réunion N°10",null,null,"Réunion N°11",null,null,"Réunion N°12"]
[null,null,null,"Nombre de membres presents ","Nombre de propositions faites ","Nombre de propositions réalisées par le Maire","Nombre de membres presents ","Nombre de propositions faites ","Nombre de propositions réalisées par le Maire","Nombre de membres presents ","Nombre de propositions faites ","Nombre de propositions réalisées par le Maire","Nombre de membres presents ","Nombre de propositions faites ","Nombre de propositions réalisées par le Maire","Nombre de membres presents ","Nombre de propositions faites ","Nombre de propositions réalisées par le Maire","Nombre de membres presents ","Nombre de propositions faites ","Nombre de propositions réalisées par le Maire","Nombre de membres presents ","Nombre de propositions faites ","Nombre de propositions réalisées par le Maire","Nombre de membres presents ","Nombre de propositions faites ","Nombre de propositions réalisées par le Maire","Nombre de membres presents ","Nombre de propositions faites ","Nombre de propositions réalisées par le Maire","Nombre de membres presents ","Nombre de propositions faites ","Nombre de propositions réalisées par le Maire","Nombre de membres presents ","Nombre de propositions faites ","Nombre de propositions réalisées par le Maire","Nombre de membres presents ","Nombre de propositions faites ","Nombre de propositions réalisées par le Maire"]
["CP N°1","Commission des Affaires Economiques et Financieres (CAEF)",7,7,5,3,7,2,2,null,null,null,null,null,null,null,null,null,null,null,null,null,null,null,null,null,null,null,null,null,null,null,null,null,null,null,null,null,null,null,null,{"$f":"C5*COUNTA(D5,G5,J5,M5,S5,V5,Y5,AB5,AE5,AH5,AK5)","v":14}]
["CP N°2","Commission des Affaires Domaniales et Environnementales (CADE)",11,11,7,7,null,6,6,10,1,1,11,6,5,10,9,7,null,null,null,null,null,null,null,null,null,null,null,null,null,null,null,null,null,null,null,null,null,null,null,33]
["CP N°3","Commission des Affaires Sociales et Culturelles (CASC)",9,9,6,3,9,2,2,8,1,1,7,3,3,8,3,3,8,2,2,null,null,null,null,null,null,null,null,null,null,null,null,null,null,null,null,null,null,null,null,45]
["CP N°4","Commission ad'hoc de l'agricultures, de l'élévage et la pêche",9,9,2,2,8,1,1,9,7,7,9,1,1,6,4,4,8,4,4,6,3,3,8,4,4,null,null,null,null,null,null,null,null,null,null,null,null,null,null,63]
["CP N°5",null,null,null,null,null,null,null,null,null,null,null,null,null,null,null,null,null,null,null,null,null,null,null,null,null,null,null,null,null,null,null,null,null,null,null,null,null,null,null,null,0]
["CP N°6",null,null,null,null,null,null,null,null,null,null,null,null,null,null,null,null,null,null,null,null,null,null,null,null,null,null,null,null,null,null,null,null,null,null,null,null,null,null,null,null,0]
["CP N°7",null,null,null,null,null,null,null,null,null,null,null,null,null,null,null,null,null,null,null,null,null,null,null,null,null,null,null,null,null,null,null,null,null,null,null,null,null,null,null,null,0]
["CP N°8",null,null,null,null,null,null,null,null,null,null,null,null,null,null,null,null,null,null,null,null,null,null,null,null,null,null,null,null,null,null,null,null,null,null,null,null,null,null,null,null,0]
["CP N°9",null,null,null,null,null,null,null,null,null,null,null,null,null,null,null,null,null,null,null,null,null,null,null,null,null,null,null,null,null,null,null,null,null,null,null,null,null,null,null,null,0]
["CP N°10",null,null,null,null,null,null,null,null,null,null,null,null,null,null,null,null,null,null,null,null,null,null,null,null,null,null,null,null,null,null,null,null,null,null,null,null,null,null,null,null,0]
["Nombre",null,{"$f":"COUNT(C5:C14)","v":4},4,4,4,3,4,4,3,3,3,3,3,3,3,3,3,2,2,2,1,1,1,1,1,1,0,0,0,0,0,0,0,0,0,0,0,0,null,null,{"$f":"SUM(AP5:AP14)","v":155}]
["Effectif",null,{"$f":"SUM(C5:C14)","v":36},36,20,15,24,11,11,27,9,9,27,10,9,24,16,14,16,6,6,6,3,3,8,4,4,0,0,0,0,0,0,0,0,0,0,0,0]

{"sheet":"Cadres de Concertation","index":6,"n_rows":18,"n_cols":12,"rows_kept":18,"cut":false,"hidden":false,"merged":[[0,0,0,1],[6,3,17,11],[2,3,3,4],[1,0,1,11],[2,0,2,2],[2,5,2,11],[3,0,3,1],[4,0,4,1],[3,5,4,5],[3,6,4,6],[3,7,4,7],[3,8,4,8],[3,9,4,9],[3,10,4,10],[3,11,4,11],[5,3,5,4]]}
["Retour à l'accueil"]
["Tenue des Cadres de Concertation"]
[" Mairie-SDE",null,null,null,null,"Autres Cadres "]
["Effectif des membres du Cadre de Concertation Mairie-SDE",null,18,null,null,"Education","Eau, Hygiène et Assainissement","Agricole","Maire et OSC","Nutrition","Sport","Autres"]
["Nombre de sessions prévues",null,2]
["Sessions","Effectif présent","Date","Nombre de séances tenues",null,2,null,3,2,4,1,2]
["Session N°1",13,"2022-07-06"]
["Session N°2",14,"2022-12-29"]
["Session N°3"]
["Session N°4"]
["Session N°5"]
["Session N°6"]
["Session N°7"]
["Session N°8"]
["Session N°9"]
["Session N°10"]
["Session N°11"]
["Session N°12"]

{"sheet":"Tutelle","index":7,"n_rows":9,"n_cols":8,"rows_kept":9,"cut":false,"hidden":false,"merged":[[5,4,8,4],[5,5,5,6],[6,5,6,6],[7,5,7,6],[8,5,8,6],[1,4,4,4],[1,5,1,6],[2,5,2,6],[3,5,3,6],[4,5,4,6],[8,0,8,2],[0,0,0,3],[1,0,1,3],[2,0,2,1],[6,0,6,3],[7,0,7,2]]}
["Retour à l'accueil"]
["Participation aux CDCC",null,null,null,"Budget communal (Budget primitif)","Le budget est transmis ou pas.",null,"TRANSMIS"]
["Effectif (Maire et ses adjoints)",null,3,null,null,"Date d'adoption du budget",null,"2021-11-25"]
["Sessions","Effectif présent","Date début session","Date fin session",null,"Date de transmission du budget à la tutelle",null,"2021-12-10"]
["CDCC N°1",3,"2022-01-31","2022-01-31",null,"Date d'approbation du budget par la tutelle",null,"2022-01-11"]
["CDCC N°2",3,"2022-11-08","2022-11-08","Compte Administratif ","Le compte administratif est  transmis ou pas.",null,"TRANSMIS"]
["Conformité des actes",null,null,null,null,"Date d'adoption du compte administratif de l'année 2021",null,"2023-03-20"]
["Nombre d’actes conformes",null,null,51,null,"Date de transmission à la tutelle",null,"2023-03-27"]
["Nombre d’actes soumis pour approbation",null,null,72,null,"Date d'approbation du compte administratif par la tutelle",null,"2022-07-29"]

{"sheet":"Marchés","index":8,"n_rows":16,"n_cols":50,"rows_kept":16,"cut":false,"hidden":false,"merged":[[0,0,0,7],[5,0,5,3],[3,0,3,3],[2,0,2,3],[1,0,1,3],[1,5,5,5],[4,0,4,3],[6,2,6,3],[6,4,6,5],[6,6,6,7],[6,0,8,0],[6,1,8,1],[7,2,7,3],[7,4,7,5],[7,6,7,7],[6,8,6,9],[7,8,7,9],[6,10,6,11],[7,10,7,11],[6,12,6,13],[7,12,7,13],[6,14,6,15],[7,14,7,15],[6,16,6,17],[7,16,7,17],[6,18,6,19],[7,18,7,19],[6,20,6,21],[7,20,7,21],[6,22,6,23],[7,22,7,23],[6,24,6,25],[7,24,7,25],[6,26,6,27],[7,26,7,27],[6,28,6,29],[7,28,7,29],[6,30,6,31],[7,30,7,31],[6,32,6,33],[7,32,7,33],[6,34,6,35],[7,34,7,35],[6,36,6,37],[7,36,7,37],[6,38,6,39],[7,38,7,39],[6,40,6,41],[7,40,7,41],[6,42,6,43],[7,42,7,43],[6,44,6,45],[7,44,7,45],[6,46,6,47],[7,46,7,47],[6,48,6,49],[7,48,7,49]]}
["Retour à l'accueil"]
["Type de commune",null,null,null,"Commune ordinaire"]
["Plan de passation des marchés publics publiés",null,null,null,"OUI"]
["Nombre de marchés publics passés hors plan de passation des marchés ",null,null,null,0]
["Nombre de marchés conclus dans l'année",null,null,null,24]
["Nombre de marchés conclus dans l’année ayant respecté les procédures",null,null,null,20]
["Mode de passation","Délai de passation"," Marché N°1",null," Marché N°2",null," Marché N°3",null,"Marché N°4",null,"Marché N°5",null,"Marché N°6",null,"Marché N°7",null,"Marché N°8",null,"Marché N°9",null,"Marché N°10",null,"Marché N°11",null,"Marché N°12",null,"Marché N°13",null,"Marché N°14",null,"Marché N°15",null,"Marché N°16",null,"Marché N°17",null,"Marché N°18",null,"Marché N°19",null,"Marché N°20",null,"Marché N°21",null,"Marché N°22",null,"Marché N°23",null,"Marché N°24"]
[null,null,"Travaux de construction des infrastructures scolaires: Travaux de construction d’un  (01)  module de trois classes avec bureau et magasin équipés de 75 table-bancs, 6 chaises, 3 tables maître, 1 bureau directeur et avec latrine à 4 cabines à l’EPP  de BADAGOU, arrondissement de Toura dans la commune de Banikoara (Lot1).",null,"Travaux de construction des infrastructures scolaires: Travaux de construction d’un  (01)  module de trois classes avec bureau et magasin équipés de 75 table-bancs, 6 chaises, 3 tables maître, 1 bureau directeur et avec latrine à 4 cabines à l’EPP de GAANI, arrondissement de Goumori dans la commune de Banikoara (Lot2).",null,"Travaux de construction des infrastructures scolaires: Travaux de construction d’un  (01)  module de trois classes avec bureau et magasin équipés de 75 table-bancs, 6 chaises, 3 tables maître, 1 bureau directeur et avec latrine à 4 cabines à l’EPP de Tokey, arrondissement de Banikoara dans la commune de Banikoara (Lot3).",null,"Acquisition  de quatre (04) tricycles, de (100) poubelles ordinaires et les petits matériels pour la pré-collecte (bottes, cache-nez, râteaux, brouettes, pelles, gants, brosses, barre à main et blouson fluorescent).",null,"Travaux de réfection des infrastructures scolaires (Gningnimpogou et Demamou)",null,"Entretien et nettoyage des bureaux  de l’hôtel de ville de Banikoara.",null,"Entretien et nettoyage des espaces verts de l’hôtel de ville de Banikoara. ",null,"Contrôle et suivi des travaux d'assainissement de la ville de Gomparou (Rue EPP Gomparou-Maison Adam ALIDOU -Maison IMAM Idrissou) dans la Commune de Banikoara.",null,"Contrôle des travaux de construction de cinq (05) modules de trois (03) classes avec bureau-magasin avec cinq (05)  blocs de latrine VIP à 4 cabines  et équipements dans les EPP  de BADAGOU, de GAANI, de TOKEY,  de BIWIRI et de BONKERE dans la commune de Banikoara.",null,"Contrôle des travaux de construction de la maison des jeunes de Ounet dans la commune de Banikoara.         ",null,"Travaux de réalisation de la clôture et connexe du logement du Médecin Chef du Centre de Santé Communal (CSCom) de Banikoara",null,"Acquisition de mobiliers scolaires constitués de 130 tables et bancs au profit des écoles primaires publiques de Banikoara",null,"Acquisition de fournitures  de bureau et autres consommables au profit de la Mairie de Banikoara\n",null,"Entretien et curage  des ouvrages de voirie et d'assainissement dans la commune de Banikoara",null,"Réalisation d'un Système Informatisé pour la gestion performante du Service des Affaires Domaniales et du Foncier plus équipement au profit de la Commune de Banikoara",null,"Travaux de réfection de deux modules de trois classes plus bureaux et magasins à l'EPP SIMPEROU et à l’EPP DEROU GANRO dans la Commune de BANIKOARA",null,"Travaux d’entretien courant des ITR par la méthode HIMO dans la Commune de Banikoara : Axe Niékoubanta-Kokey-Soumabougou (lot1)",null,"Travaux d’entretien courant des ITR par la méthode HIMO dans la Commune de Banikoara : Axe Kokey-Founougo (lot2)",null,"Acquisition de dix (10) Ordinateurs de Bureau, cinq (05) imprimantes, de cinq (05) ordinateurs portatifs, d'une imprimante couleur et d'une imprimante de grande capacité, d'un serveur pour les logiciels de gestion (GBCO, Guichet Unique etc…), de quinze (15) régulateurs et quinze (15) onduleurs destinés à la Mairie de Banikoara pour le fonctionnement",null,"Acquisition de lits métalliques d'hospitalisation simple en fabrication locale avec matelas en similicuir et potences sérum l’Acquisition de lits métalliques d'hospitalisation simple en fabrication locale avec matelas en similicuir et potences sérum",null,"Travaux de sécurisation et de balisage des couloirs de passage dans le commune de Banikaora: axe Banikoara-Goumonri-frontière Kèrou  ",null,"Travaux de réhabilitation des bâtiments annexes et confortatifs sur le bâtiment principal de l'hôtel de ville",null,"Travaux de réhabilitation de la maison des jeunes de Soroko (forme dallage, protection, toiture, charpente, forme de pente, marches, électricité, plafond, enduits et peinture",null,"Acquisition de vivriers pour distribution aux sinistrés des risques et catastrophes naturelles dans la commune de banikoara, et sensibilisation de la population sur la réalisation des pare feux pour environnement sain"]
[null,86,"Type de marchés publics ","Nombre de jours consacrés à la passation","Type de marchés publics ","Nombre de jours consacrés à la passation","Type de marchés publics ","Nombre de jours consacrés à la passation","Type de marchés publics ","Nombre de jours consacrés à la passation","Type de marchés publics ","Nombre de jours consacrés à la passation","Type de marchés publics ","Nombre de jours consacrés à la passation","Type de marchés publics ","Nombre de jours consacrés à la passation","Type de marchés publics ","Nombre de jours consacrés à la passation","Type de marchés publics ","Nombre de jours consacrés à la passation","Type de marchés publics ","Nombre de jours consacrés à la passation","Type de marchés publics ","Nombre de jours consacrés à la passation","Type de marchés publics ","Nombre de jours consacrés à la passation","Type de marchés publics ","Nombre de jours consacrés à la passation","Type de marchés publics ","Nombre de jours consacrés à la passation","Type de marchés publics ","Nombre de jours consacrés à la passation","Type de marchés publics ","Nombre de jours consacrés à la passation","Type de marchés publics ","Nombre de jours consacrés à la passation","Type de marchés publics ","Nombre de jours consacrés à la passation","Type de marchés publics ","Nombre de jours consacrés à la passation","Type de marchés publics ","Nombre de jours consacrés à la passation","Type de marchés publics ","Nombre de jours consacrés à la passation","Type de marchés publics ","Nombre de jours consacrés à la passation","Type de marchés publics ","Nombre de jours consacrés à la passation","Type de marchés publics ","Nombre de jours consacrés à la passation"]
["Appel Offre Ouvert",46,"Travaux",90,"Travaux",90,"Travaux",90]
["Demande de renseignement",27,"Travaux",null,null,null,null,null,"DRP",90,"DRP",90,"DC",30,"DC",30,null,null,null,null,null,null,null,null,null,null,"DRP",30,null,null,null,null,null,null,"DRP",90,"DRP",90,null,null,"DRP",90,"DRP",90,"DRP",90,"DRP",90]
["Demande de cotation",65,"Travaux",null,null,null,null,null,null,null,null,null,null,null,null,null,"DC",30,"DC",30,"DC",30,"DC",30,"DC",30,null,null,"DC",30,"DC",30,"DC",30,null,null,null,null,"DC",30,null,null,null,null,null,null,null,null,"DC",30]
[null,null,null,{"$f":"IF(C10=\"\",0,IF(D10<=$B10,1,0))","v":0},null,{"$f":"IF(E10=\"\",0,IF(F10<=$B10,1,0))","v":0},null,{"$f":"IF(G10=\"\",0,IF(H10<=$B10,1,0))","v":0},null,{"$f":"IF(I10=\"\",0,IF(J10<=$B10,1,0))","v":0},null,{"$f":"IF(K10=\"\",0,IF(L10<=$B10,1,0))","v":0},null,{"$f":"IF(M10=\"\",0,IF(N10<=$B10,1,0))","v":0},null,{"$f":"IF(O10=\"\",0,IF(P10<=$B10,1,0))","v":0},null,{"$f":"IF(Q10=\"\",0,IF(R10<=$B10,1,0))","v":0},null,{"$f":"IF(S10=\"\",0,IF(T10<=$B10,1,0))","v":0},null,{"$f":"IF(U10=\"\",0,IF(V10<=$B10,1,0))","v":0},null,{"$f":"IF(W10=\"\",0,IF(X10<=$B10,1,0))","v":0},null,{"$f":"IF(Y10=\"\",0,IF(Z10<=$B10,1,0))","v":0},null,{"$f":"IF(AA10=\"\",0,IF(AB10<=$B10,1,0))","v":0},null,{"$f":"IF(AC10=\"\",0,IF(AD10<=$B10,1,0))","v":0},null,{"$f":"IF(AE10=\"\",0,IF(AF10<=$B10,1,0))","v":0},null,{"$f":"IF(AG10=\"\",0,IF(AH10<=$B10,1,0))","v":0},null,{"$f":"IF(AI10=\"\",0,IF(AJ10<=$B10,1,0))","v":0},null,{"$f":"IF(AK10=\"\",0,IF(AL10<=$B10,1,0))","v":0},null,{"$f":"IF(AM10=\"\",0,IF(AN10<=$B10,1,0))","v":0},null,{"$f":"IF(AO10=\"\",0,IF(AP10<=$B10,1,0))","v":0},null,{"$f":"IF(AQ10=\"\",0,IF(AR10<=$B10,1,0))","v":0},null,{"$f":"IF(AS10=\"\",0,IF(AT10<=$B10,1,0))","v":0},null,{"$f":"IF(AU10=\"\",0,IF(AV10<=$B10,1,0))","v":0},null,{"$f":"IF(AW10=\"\",0,IF(AX10<=$B10,1,0))","v":0}]
[null,null,null,{"$f":"IF(C11=\"\",0,IF(D11<=$B11,1,0))","v":1},null,{"$f":"IF(E11=\"\",0,IF(F11<=$B11,1,0))","v":0},null,{"$f":"IF(G11=\"\",0,IF(H11<=$B11,1,0))","v":0},null,{"$f":"IF(I11=\"\",0,IF(J11<=$B11,1,0))","v":0},null,{"$f":"IF(K11=\"\",0,IF(L11<=$B11,1,0))","v":0},null,{"$f":"IF(M11=\"\",0,IF(N11<=$B11,1,0))","v":0},null,{"$f":"IF(O11=\"\",0,IF(P11<=$B11,1,0))","v":0},null,{"$f":"IF(Q11=\"\",0,IF(R11<=$B11,1,0))","v":0},null,{"$f":"IF(S11=\"\",0,IF(T11<=$B11,1,0))","v":0},null,{"$f":"IF(U11=\"\",0,IF(V11<=$B11,1,0))","v":0},null,{"$f":"IF(W11=\"\",0,IF(X11<=$B11,1,0))","v":0},null,{"$f":"IF(Y11=\"\",0,IF(Z11<=$B11,1,0))","v":0},null,{"$f":"IF(AA11=\"\",0,IF(AB11<=$B11,1,0))","v":0},null,{"$f":"IF(AC11=\"\",0,IF(AD11<=$B11,1,0))","v":0},null,{"$f":"IF(AE11=\"\",0,IF(AF11<=$B11,1,0))","v":0},null,{"$f":"IF(AG11=\"\",0,IF(AH11<=$B11,1,0))","v":0},null,{"$f":"IF(AI11=\"\",0,IF(AJ11<=$B11,1,0))","v":0},null,{"$f":"IF(AK11=\"\",0,IF(AL11<=$B11,1,0))","v":0},null,{"$f":"IF(AM11=\"\",0,IF(AN11<=$B11,1,0))","v":0},null,{"$f":"IF(AO11=\"\",0,IF(AP11<=$B11,1,0))","v":0},null,{"$f":"IF(AQ11=\"\",0,IF(AR11<=$B11,1,0))","v":0},null,{"$f":"IF(AS11=\"\",0,IF(AT11<=$B11,1,0))","v":0},null,{"$f":"IF(AU11=\"\",0,IF(AV11<=$B11,1,0))","v":0},null,{"$f":"IF(AW11=\"\",0,IF(AX11<=$B11,1,0))","v":0}]
[null,null,null,{"$f":"IF(C12=\"\",0,IF(D12<=$B12,1,0))","v":1},null,{"$f":"IF(E12=\"\",0,IF(F12<=$B12,1,0))","v":0},null,{"$f":"IF(G12=\"\",0,IF(H12<=$B12,1,0))","v":0},null,{"$f":"IF(I12=\"\",0,IF(J12<=$B12,1,0))","v":0},null,{"$f":"IF(K12=\"\",0,IF(L12<=$B12,1,0))","v":0},null,{"$f":"IF(M12=\"\",0,IF(N12<=$B12,1,0))","v":0},null,{"$f":"IF(O12=\"\",0,IF(P12<=$B12,1,0))","v":0},null,{"$f":"IF(Q12=\"\",0,IF(R12<=$B12,1,0))","v":1},null,{"$f":"IF(S12=\"\",0,IF(T12<=$B12,1,0))","v":1},null,{"$f":"IF(U12=\"\",0,IF(V12<=$B12,1,0))","v":1},null,{"$f":"IF(W12=\"\",0,IF(X12<=$B12,1,0))","v":1},null,{"$f":"IF(Y12=\"\",0,IF(Z12<=$B12,1,0))","v":1},null,{"$f":"IF(AA12=\"\",0,IF(AB12<=$B12,1,0))","v":0},null,{"$f":"IF(AC12=\"\",0,IF(AD12<=$B12,1,0))","v":1},null,{"$f":"IF(AE12=\"\",0,IF(AF12<=$B12,1,0))","v":1},null,{"$f":"IF(AG12=\"\",0,IF(AH12<=$B12,1,0))","v":1},null,{"$f":"IF(AI12=\"\",0,IF(AJ12<=$B12,1,0))","v":0},null,{"$f":"IF(AK12=\"\",0,IF(AL12<=$B12,1,0))","v":0},null,{"$f":"IF(AM12=\"\",0,IF(AN12<=$B12,1,0))","v":1},null,{"$f":"IF(AO12=\"\",0,IF(AP12<=$B12,1,0))","v":0},null,{"$f":"IF(AQ12=\"\",0,IF(AR12<=$B12,1,0))","v":0},null,{"$f":"IF(AS12=\"\",0,IF(AT12<=$B12,1,0))","v":0},null,{"$f":"IF(AU12=\"\",0,IF(AV12<=$B12,1,0))","v":0},null,{"$f":"IF(AW12=\"\",0,IF(AX12<=$B12,1,0))","v":1}]
[null,null,null,{"$f":"SUM(D13:D15)","v":2},null,{"$f":"SUM(F13:F15)","v":0},null,{"$f":"SUM(H13:H15)","v":0},null,{"$f":"SUM(J13:J15)","v":0},null,{"$f":"SUM(L13:L15)","v":0},null,{"$f":"SUM(N13:N15)","v":0},null,{"$f":"SUM(P13:P15)","v":0},null,{"$f":"SUM(R13:R15)","v":1},null,{"$f":"SUM(T13:T15)","v":1},null,{"$f":"SUM(V13:V15)","v":1},null,{"$f":"SUM(X13:X15)","v":1},null,{"$f":"SUM(Z13:Z15)","v":1},null,{"$f":"SUM(AB13:AB15)","v":0},null,{"$f":"SUM(AD13:AD15)","v":1},null,{"$f":"SUM(AF13:AF15)","v":1},null,{"$f":"SUM(AH13:AH15)","v":1},null,{"$f":"SUM(AJ13:AJ15)","v":0},null,{"$f":"SUM(AL13:AL15)","v":0},null,{"$f":"SUM(AN13:AN15)","v":1},null,{"$f":"SUM(AP13:AP15)","v":0},null,{"$f":"SUM(AR13:AR15)","v":0},null,{"$f":"SUM(AT13:AT15)","v":0},null,{"$f":"SUM(AV13:AV15)","v":0},null,{"$f":"SUM(AX13:AX15)","v":1}]

{"sheet":"Services Délégués","index":9,"n_rows":5,"n_cols":30,"rows_kept":5,"cut":false,"hidden":false,"merged":[[1,18,1,25],[2,24,2,25],[2,20,2,21],[2,22,2,23],[1,26,2,27],[1,28,2,29],[0,0,0,21],[1,0,1,5],[1,6,1,17],[2,0,2,1],[2,2,2,3],[2,4,2,5],[2,6,2,7],[2,8,2,9],[2,10,2,11],[2,12,2,13],[2,14,2,15],[2,16,2,17],[2,18,2,19]]}
["Retour à l'accueil"]
["EAU",null,null,null,null,null,"ASSAINISSEMENT",null,null,null,null,null,null,null,null,null,null,null,"SERVICES MARCHANDS",null,null,null,null,null,null,null,"PANNEAUX PUBLICITAIRES",null,"TOTAL"]
["AEV",null,"FPM",null,"PEA",null,"Entretien des voies urbaines",null,"Eclairage public",null,"Collecte et traitement des déchets",null,"Evacuation des eaux usées",null,"Gestion des cimétieres",null,"Gestion des espaces verts",null,"Gestion des marchés",null,"Gestion des abattoirs",null,"Promotion du tourisme",null,"Gestions des gares routieres"]
["PREVUES","DELEGUEES","PREVUES","DELEGUEES","PREVUES","DELEGUEES","PREVUS","DELEGUES","PREVUS","DELEGUES","PREVUS","DELEGUES","PREVUS","DELEGUES","PREVUS","DELEGUES","PREVUS","DELEGUES","PREVUS","DELEGUES","PREVUS","DELEGUES","PREVUS","DELEGUES","PREVUS","DELEGUES","PREVUS","DELEGUES","PREVUS","DELEGUES"]
[7,7,510,459,0,0,0,0,0,0,5,5,0,0,0,0,1,1,11,1,5,5,0,0,1,0,5,5,{"$f":"SUM(A5,C5,E5,G5,I5,K5,M5,O5,Q5,S5,U5,W5,Y5,AA5)","v":545},{"$f":"SUM(B5,D5,F5,H5,J5,L5,N5,P5,R5,T5,V5,X5,Z5,AB5)","v":483}]

{"sheet":"Autres données","index":10,"n_rows":37,"n_cols":4,"rows_kept":37,"cut":false,"hidden":false,"merged":[[0,0,0,3],[1,0,1,2],[18,0,18,1],[19,0,19,1],[26,0,26,1],[2,0,3,1],[4,0,5,1],[6,0,7,1],[8,0,9,1],[14,0,17,1],[10,0,13,0],[10,1,12,1],[13,1,13,2],[27,0,27,1],[31,0,32,1],[33,0,34,1],[35,0,36,1],[20,0,21,1],[22,0,23,1],[24,0,25,1],[28,0,30,1]]}
["Retour à l'accueil"]
["Données à collecter",null,null,"Valeurs"]
["Fonctionalité des services de la mairie",null,"Nombre de services prévus.",15]
[null,null,"Nombre de services fonctionnels",15]
["Manuel de procédure",null,"Existence du manuel de procédure","OUI"]
[null,null,"Manuel de procédure actualisé.","NON"]
["Evaluation du personnel",null,"Nombre de personnes évalué",64]
[null,null,"Effectif du personnel",64]
["Adequation profil/poste",null,"Nombre de postes occupés dans la commune",42]
[null,null,"Nombre d'agents dont le profil correspond au poste occupé",42]
["Données Foncieres","Commission de Gestion foncière (COGEF)","Existence de la COGEF","OUI"]
[null,null,"Nombre d'Attestation de  Détention Coutumiere (ADC) demandé",210]
[null,null,"Nombre d'Attestation de  Détention Coutumiere (ADC) traité",170]
[null,"Nombre de contentieux fonciers impliquant la commune",null,3]
["Système d'information ",null,"Existence d’un système de classement et d’archivage","OUI"]
[null,null,"Existence d’une personne en charge du classement des archivages","OUI"]
[null,null,"Existence d’un local dédié à l’archivage","OUI"]
[null,null,"Existence de documents archivés.","OUI"]
["Nombre de délégations",null,"Nombre de délégations de signature pris.",12]
["Attributions  de pouvoir",null,"Nombre d'attributions  de pouvoir pris.",1]
["Séances de reddition de comptes",null,"Nombre   de séances tenues",2]
[null,null,"Nombre de séances prévues.",2]
["Activités spécifiques en faveur des femmes ",null,"Nombre  d’activités spécifiques réalisées en faveur des femmes ",22]
[null,null,"Nombre d’activités réalisées dans le PTA",63]
["Informations sur les prestations de la commune",null,"Existence d’un lieu publique dédié à l'informations sur les prestations de la commune","OUI"]
[null,null,"Existence d'une personne en charge de l'information","OUI"]
["SDAC en cours de validité",null,"Existence  ou non d'un SDAC ","OUI"]
["PDC en cours de validité",null,"Existence ou non d’un PDC","OUI"]
["Suivi évaluation des PTA/PAI/PAD",null,"Nombre de séances de suivi évaluation des PTA",4]
[null,null,"Nombre de séances de suivi évaluation des PAI",4]
[null,null,"Nombre de séances de suivi évaluation des PAD",2]
["Infrastructures économiques et marchandes",null,"Nombre réalisées en année 2022",23]
[null,null,"Nombre réalisées en année 2021",34]
["TBS",null,"Existence  d’un TBS actualisé ","NON"]
[null,null,"Date d’actualisation"]
["Coopération décentralisée",null,"Nombre  d’accord actif",0]
[null,null,"Nombre d’activités réalisées provenants de ces accords ",0]

{"sheet":"Récapitulatif","index":11,"n_rows":93,"n_cols":6,"rows_kept":93,"cut":false,"hidden":true,"merged":[[0,0,0,1],[1,0,1,1],[2,0,2,1],[3,0,3,1],[4,0,4,1],[5,0,5,1],[6,0,6,1],[7,0,7,1],[8,0,8,1],[9,0,9,1],[10,0,10,1],[11,0,11,1],[12,0,12,1],[13,0,13,1],[14,0,14,1],[15,0,15,1],[16,0,16,1],[17,0,17,1],[18,0,18,1],[19,0,19,1],[20,0,20,1],[21,0,21,1],[22,0,22,1],[23,0,23,1],[24,0,24,1],[25,0,25,1],[26,0,26,1],[27,0,27,1],[28,0,28,1],[29,0,29,1],[30,0,30,1],[31,0,31,1],[32,0,32,1],[33,0,33,1],[34,0,34,1],[38,0,38,1],[39,0,39,1],[40,0,40,1],[41,0,41,1],[42,0,42,1],[43,0,43,1],[44,0,44,1],[45,0,45,1],[46,0,46,1],[47,0,47,1],[48,0,48,1],[49,0,49,1],[50,0,50,1],[51,0,51,1],[52,0,52,1],[53,0,53,1],[54,0,54,1],[55,0,55,1],[56,0,56,1],[57,0,57,1],[64,0,64,1],[65,0,65,1],[66,0,66,1],[67,0,67,1],[58,0,58,1],[59,0,59,1],[60,0,60,1],[61,0,61,1],[62,0,62,1],[35,0,37,0],[78,0,78,1],[81,0,81,1],[82,0,82,1],[83,0,83,1],[73,0,73,1],[74,0,74,1],[75,0,75,1],[76,0,76,1],[77,0,77,1],[68,0,68,1],[69,0,69,1],[70,0,70,1],[71,0,71,1],[72,0,72,1],[63,0,63,1],[91,0,91,1],[92,0,92,1],[79,0,79,1],[80,0,80,1],[85,0,85,1],[88,0,88,1],[90,0,90,1],[86,0,86,1],[87,0,87,1],[89,0,89,1],[84,0,84,1]]}
["Données à traiter",null,"Valeurs"]
["Nombre de sessions ordinaires tenues",null,{"$f":"COUNTA(CC!C6:C9)","v":4}]
["Nombre de services prévus.",null,{"$f":"'Autres données'!D3","v":15}]
["Nombre de services existant doté en personnel.",null,{"$f":"'Autres données'!D4","v":15}]
["Nombre d’élus du conseil communal",null,{"$f":"CC!D4","v":33}]
["Nombre de conseillers présents à chaque conseil communal",null,{"$f":"SUMIF(CC!C6:C9,\"<>\",CC!B6:B9)","v":124}]
["Existence du manuel de procédure actualisé.",null,{"$f":"IF(OR('Autres données'!D5=\"NON\",'Autres données'!D5=\"\"),0,IF('Autres données'!D6=\"OUI\",1,0.5))","v":0.5}]
["Nombre de fiches d’évaluation du personnel évalué dans l’année.",null,{"$f":"'Autres données'!D7","v":64}]
["Nombre de personnes à évaluer.",null,{"$f":"'Autres données'!D8","v":64}]
["Nombre de commissions permanentes existantes.",null,{"$f":"CP!C15","v":4}]
["Nombre de sessions des commissions permamentes",null,{"$f":"SUM(CP!D15,CP!G15,CP!J15,CP!M15,CP!P15,CP!V15,CP!Y15,CP!AB15,CP!AE15,CP!AH15,CP!AK15)","v":18}]
["Nombre présents commission permanente",null,{"$f":"SUM(CP!D16,CP!G16,CP!J16,CP!M16,CP!P16,CP!V16,CP!Y16,CP!AB16,CP!AE16,CP!AH16,CP!AK16)","v":152}]
["Nombre de propositions formulées par les commissions permanentes",null,{"$f":"SUM(CP!E16,CP!H16,CP!K16,CP!N16,CP!Q16,CP!T16,CP!W16,CP!Z16,CP!AC16,CP!AF16,CP!AI16,CP!AL16)","v":79}]
["Nombre de propositions formulées par les commissions permanentes réalisées.",null,{"$f":"SUM(CP!F16,CP!I16,CP!L16,CP!O16,CP!R16,CP!U16,CP!X16,CP!AA16,CP!AD16,CP!AG16,CP!AJ16,CP!AM16)","v":71}]
["Nombre de postes occupés",null,{"$f":"'Autres données'!D9","v":42}]
["Nombre de postes occupés correspondant au profil recherché",null,{"$f":"'Autres données'!D10","v":42}]
["Existence ou non d’un système de documentation et d’archivage",null,{"$f":"IF('Autres données'!D15=\"OUI\",1,0)","v":1}]
["Existence ou non d’une personne en charge de la documentation et d’archivage",null,{"$f":"IF('Autres données'!D16=\"OUI\",1,0)","v":1}]
["Existence ou non d’un local dédié à la documentation et d’archivage",null,{"$f":"IF('Autres données'!D17=\"OUI\",1,0)","v":1}]
["Existence ou non de document archivés.",null,{"$f":"IF('Autres données'!D18=\"OUI\",1,0)","v":1}]
["Nombre de services publics susceptibles d’être délégués",null,{"$f":"'Services Délégués'!AC5","v":545}]
["Nombre de services publics délégués dans l’année",null,{"$f":"'Services Délégués'!AD5","v":483}]
["Nombre total de rapports produits dans l’année",null,{"$f":"COUNTIF(CC!F6:F9,\"=OUI\")","v":4}]
["Nombre total de rapports à produire dans l’année.",null,{"$f":"C2","v":4},"nombre de session dans l'année =4"]
["Nombre de réunions de la municipalité ",null,{"$f":"CC!D3","v":10}]
["Nombre de réunions prévues",null,12,"limité à 12"]
["Nombre total de sessions de conseils d’arrondissement tenues au cours de l’année",null,{"$f":"SUM(CA!B3:B50)","v":68},"somme dans CA"]
["Nombre d’arrondissements",null,10]
["Nombre total de réunions de conseils de village tenues au cours de l’année",null,{"$f":"SUM(CV!C5:C100)","v":90},"somme d&ns CV"]
["Nombre de villages",null,112]
["Nombre de documents ou d’arrêtés  portant délégation de signature pris.",null,{"$f":"'Autres données'!D19","v":12}]
["Nombre de document ou arrêtés portant délégation de pouvoir pris.",null,{"$f":"'Autres données'!D20","v":1}]
["Montant du budget prévisionnel",null,{"$f":"Budget!A5","v":2614941026}]
["Montant du Budget Consommé",null,{"$f":"E37+C39","v":2172006139}]
["Recette fiscales previsionnelles",null,{"$f":"Budget!B5","v":484894647}]
["Dépenses d'investissement","Ressources propres",{"$f":"Budget!D5","v":663708231}]
[null,"Investissement provenant de la coopération décentralisée",{"$f":"Budget!E5","v":0},null,{"$f":"SUM(C36:C38)","v":1580715372}]
[null,"Autres ressources",{"$f":"Budget!F5","v":917007141}]
["Dépenses totales de fonctionnement",null,{"$f":"Budget!G5","v":591290767}]
["Dépenses d'entretien des équipements et ouvrages",null,{"$f":"Budget!H5","v":15400000}]
["Montant des ressources propres de l'année n-1",null,{"$f":"Budget!K5","v":662517614}]
["Montant des ressources propres de l'année n",null,{"$f":"Budget!L5","v":616990647}]
["Recettes fiscales recouvrées",null,{"$f":"Budget!I5","v":608931929}]
["Montant des cotisations versées à échéance",null,{"$f":"Budget!M5","v":14500000}]
["Montant des cotisations dues à échéance",null,{"$f":"Budget!N5","v":14500000}]
["Nombre de marchés conclus dans l’année",null,{"$f":"Marchés!E5","v":24}]
[{"$f":"Marchés!A3","v":"Plan de passation des marchés publics publiés"},null,{"$f":"IF(Marchés!E3=\"OUI\",1,0)","v":1}]
[{"$f":"Marchés!A4:D4","v":"Nombre de marchés publics passés hors plan de passation des marchés "},null,{"$f":"Marchés!E4","v":0},{"$f":"IF(Marchés!E4=\"\",0,IF(Marchés!E4=0,1,0))","v":1}]
["Nombre de marchés conclus dans l’année et ayant respecté les procédures.",null,{"$f":"Marchés!E6","v":20}]
["Délai moyen de passation des marchés publics communaux",null,{"$f":"IF(C46=0,0,D50/C46)","v":0.5},{"$f":"SUM(Marchés!$D$16:$WG$16)","v":12}]
["Nombre de fois où les relevés des délibérations affichés ",null,{"$f":"COUNTA(CC!E6:E9)","v":4}]
["Délai d’affichage",null,{"$f":"SUM(CC!I6:I9)/C2","v":1},"8 jours maxi aprs la fin de la session"]
["Nombre de séances de reddition de comptes",null,{"$f":"'Autres données'!D21","v":2}]
["Nombre de séances de reddition de comptes prévus.",null,{"$f":"'Autres données'!D22","v":2}]
["Nombre d’actions spécifiques réalisées en faveur des femmes",null,{"$f":"'Autres données'!D23","v":22}]
["Nombre d’actions spécifiques réalisées dans le PTA",null,{"$f":"'Autres données'!D24","v":63}]
[{"$f":"'Autres données'!C25","v":"Existence d’un lieu publique dédié à l'informations sur les prestations de la commune"},null,{"$f":"IF('Autres données'!D25=\"OUI\",1,0)","v":1}]
[{"$f":"'Autres données'!C26","v":"Existence d'une personne en charge de l'information"},null,{"$f":"IF('Autres données'!D26=\"OUI\",1,0)","v":1}]
["Nombre de cadres de concertation.",null,{"$f":"COUNTA('Cadres de Concertation'!F6:L6)","v":6},{"$f":"IF(C59<=0,0,IF(C59>3,1,C59/4))","v":1}]
["Nombre moyen de réunions du cadre de concertation tenu",null,{"$f":"SUM('Cadres de Concertation'!F6:L6)/C59","v":2.3333333333333335},{"$f":"IF(C60<=0.5,0,IF(C60<1.5,0.25,IF(C60<2.5,0.5,IF(C60<4,0.75,1))))","v":0.5}]
["Existence ou non d’un SDAC.",null,{"$f":"IF('Autres données'!D27=\"OUI\",1,0)","v":1}]
["Existence ou non d’un PDC",null,{"$f":"IF('Autres données'!D28=\"OUI\",1,0)","v":1}]
["Montant PAI prévision",null,{"$f":"Budget!C5","v":1580715372}]
["Montant PAI réalisé",null,{"$f":"Budget!J5","v":1580715372}]
["Nombre de séances de suivi évaluation des PTA/PAI/PAD",null,{"$f":"SUM('Autres données'!D29:D31)","v":10}]
["Nombre d’infrastructures économiques et marchandes réalisées en année n",null,{"$f":"'Autres données'!D32","v":23}]
["Nombre d’infrastructures économiques et marchandes réalisées en année n-1",null,{"$f":"'Autres données'!D33","v":34}]
["Nombre d'EPC demandé (village)",null,{"$f":"SUM(CV!D5:D191)","v":208},null,null,"somme"]
["Nombre d'EPC réalisé (Village)",null,{"$f":"SUM(CV!E5:E191)","v":170}]
["Nombre de ADC demandé (Commune-Autre données)",null,{"$f":"'Autres données'!D12","v":210}]
["Nombre de ADC réalisé (Commune-Autre données)",null,{"$f":"'Autres données'!D13","v":170}]
["Existence ou inexistence d’un tableau de bord social actualisé ",null,{"$f":"IF('Autres données'!D34=\"OUI\",1,0)","v":0}]
["Date d’actualisation du tableau de bord social",null,{"$f":"'Autres données'!D35","v":"00:00:00"}]
["Existence d'un tableau de bord",null,{"$f":"'Autres données'!D34","v":"NON"}]
["Nombre  d’ accord de coopération décentralisée.",null,{"$f":"IF('Autres données'!D36<1,0,IF('Autres données'!D36=1,0.5,1))","v":0}]
["Nombre d’activités des accords de coopération décentralisées réalisées.",null,{"$f":"IF('Autres données'!D37<1,0,IF('Autres données'!D37<3,0.5,1))","v":0}]
["Nombre de conflits fonciers impliquant la commune",null,{"$f":"IF('Autres données'!D14=\"\",\"\",'Autres données'!D14)","v":3},{"$f":"IF(C77=\"\",0,IF(C77=0,1,IF(C77<=3,0.75,IF(C77<=8,0.5,IF(C77<=15,0.25,0)))))","v":0.75}]
["Nombre de participation du maire ou de son représentant au CDCC au cours de l’année",null,{"$f":"COUNTIF(Tutelle!B5:B6,\">0\")","v":2},"feuille tutelle (compter le nombre de lignes 5 ou 6 rempli"]
["Nombre de CDCC tenus dans l’année.",null,{"$f":"COUNTA(Tutelle!C5:C6)","v":2},"fixer à 2"]
["Nombre total de présence du maire ou de ses adjoints au CDCC",null,{"$f":"SUMIF(Tutelle!C5:C6,\"<>\",Tutelle!B5:B6)","v":6}]
["Nombre total attendu (Maire et ses adjoints) pour toutes les sessions",null,{"$f":"C79*Tutelle!C3","v":6}]
["Nombre d’actes communaux conformes en une année",null,{"$f":"Tutelle!D8","v":51}]
["Nombre d’actes communaux soumis à la tutelle en un an",null,{"$f":"Tutelle!D9","v":72}]
["Le budget est transmis ou pas.",null,{"$f":"IF(Tutelle!H2=\"TRANSMIS\",1,0)","v":1}]
["Délai de transmission du budget après adoption par le conseil communal",null,{"$f":"IF(Budget!Q5=\"\",0,IF(Budget!Q5<=DATE(Acceuil!P12,3,31),1,0))","v":0}]
["Délai d'approbation du budget par la tutelle",null,{"$f":"IF(OR(Tutelle!H4=\"\",Tutelle!H5=\"\"),0,IF(Tutelle!H5<=EDATE(Tutelle!H4,1),1,0))","v":0},"si<1mois, 1, 0 sinon"]
["Le compte administratif est  transmis ou pas.",null,{"$f":"IF(Tutelle!H6=\"TRANSMIS\",1,0)","v":1}]
["Délai de transmission du compte administratif  après adoption par le conseil communal",null,{"$f":"IF(Tutelle!H7=\"\",0,IF(Tutelle!H7<=DATE(Acceuil!P12+1,6,30),1,0))","v":1}]
["Délai d'approbation du compte administratif  par la tutelle",null,{"$f":"IF(OR(Tutelle!H8=\"\",Tutelle!H9=\"\"),0,IF(Tutelle!H9<=EDATE(Tutelle!H8,1),1,0))","v":1}]
["Nombre de réunions du cadre de concertation  prévu (Mairie + SDE)",null,{"$f":"'Cadres de Concertation'!C5","v":2}]
["Nombre de réunions du cadre de concertation  tenu (Mairie + SDE)",null,{"$f":"COUNTA('Cadres de Concertation'!C7:C18)","v":2},null,{"$f":"C91/C90","v":1},{"$f":"C92/C93","v":0.75}]
["Nombre total des membres présents (Mairie + SDE)",null,{"$f":"SUMIF('Cadres de Concertation'!C7:C18,\"<>\",'Cadres de Concertation'!B7:B18)","v":27}]
["Nombre total des membres attendus (Mairie + SDE)",null,{"$f":"'Cadres de Concertation'!C4*Récapitulatif!C91","v":36}]

{"sheet":"Indicateurs","index":12,"n_rows":45,"n_cols":4,"rows_kept":45,"cut":false,"hidden":true,"merged":[[0,0,14,0],[15,0,25,0],[26,0,30,0],[31,0,39,0],[40,0,44,0]]}
["D1",1,"Taux de realisation des sessions ordinaires du conseil communal",{"$f":"Récapitulatif!C2/4","v":1}]
[null,2,"Taux de services fonctionnels",{"$f":"Récapitulatif!C4/Récapitulatif!C3","v":1}]
[null,3,"Taux de participation des élus aux conseils communaux",{"$f":"Récapitulatif!C6/(Récapitulatif!C5*Récapitulatif!C2)","v":0.93939393939393945}]
[null,4,"Existance d'un manuel de procedure à jour",{"$f":"Récapitulatif!C7","v":0.5}]
[null,5,"Taux de personnes évaluées",{"$f":"Récapitulatif!C8/Récapitulatif!C9","v":1}]
[null,6,"Taux de commissions permanentes fonctionnelles",{"$f":"((Récapitulatif!C11/Récapitulatif!C10)+(Récapitulatif!C12/CP!AP15)+(Récapitulatif!C14/Récapitulatif!C13))/3","v":2.1264597795018374}]
[null,7,"Taux d'adéquation profil/poste",{"$f":"Récapitulatif!C16/Récapitulatif!C15","v":1}]
[null,8,"Fonctionalité du système de classement et d'archivage",{"$f":"SUM(Récapitulatif!C17:C20)/4","v":1}]
[null,9,"Taux de services publics locaux en gestion déléguée",{"$f":"Récapitulatif!C22/Récapitulatif!C21","v":0.88623853211009174}]
[null,10,"Taux de realisation des rapports d'activités du maire",{"$f":"Récapitulatif!C23/Récapitulatif!C24","v":1}]
[null,11,"Taux de tenu des reunions de municipalité",{"$f":"Récapitulatif!C25/Récapitulatif!C26","v":0.83333333333333337}]
[null,12,"Taux moyen de tenue des sessions du conseil d'arrondissement",{"$f":"Récapitulatif!C27/Récapitulatif!C28","v":6.8}]
[null,13,"Taux moyen de tenue des sessions du conseil de villages",{"$f":"Récapitulatif!C29/Récapitulatif!C30","v":0.8035714285714286}]
[null,14,"Nombre de délégation de signature du maire aux adjoints",{"$f":"Récapitulatif!C31","v":12}]
[null,15,"Nombre de délégation de pouvoir éffectué par le maire",{"$f":"Récapitulatif!C32","v":1}]
["D2",1,"Taux d'éxecution du budget communal",{"$f":"Récapitulatif!C34/Récapitulatif!C33","v":0.83061381400346734}]
[null,2,"Taux d'autofinancement des Investissements",{"$f":"Récapitulatif!C36/Récapitulatif!E37","v":0.4198783935151103}]
[null,3,"Part des Investissements dans les dépenses totales de la commune",{"$f":"Récapitulatif!E37/Récapitulatif!C34","v":0.72776745130553244}]
[null,4,"Part des dépenses d'entretien des équipements et ouvrages dans les depenses de fonctionnement",{"$f":"Récapitulatif!C40/Récapitulatif!C39","v":2.6044715830984725E-2}]
[null,5,"Adoption du budget dans les délais",{"$f":"IF(Tutelle!H3=\"\",0,IF(Tutelle!H3<DATE(Acceuil!P12,1,1),1,0))","v":1}]
[null,6,"Respect du délai de vote du compte administratif",{"$f":"IF(Tutelle!H7=\"\",0,IF(Tutelle!H7<=DATE(Acceuil!P12,6,30),1,0))","v":0}]
[null,7,"Taux d'accroissement des ressources propres",{"$f":"(Récapitulatif!C42-Récapitulatif!C41)/Récapitulatif!C41","v":-6.871812316826946E-2}]
[null,8,"Taux de recouvrement fiscal",{"$f":"Récapitulatif!C43/Récapitulatif!C35","v":1.2558025393091212}]
[null,9,"délai moyen de passation des marchés publics communaux",{"$f":"Récapitulatif!C50/Récapitulatif!C46","v":2.0833333333333332E-2}]
[null,10,"Existance des plans de passation des marchés validés et publiés",{"$f":"(Récapitulatif!C47+Récapitulatif!D48)/2","v":1}]
[null,11,"Ratio des marchés publics ayant respecté les procédures",{"$f":"Récapitulatif!C49/Récapitulatif!C46","v":0.83333333333333337}]
["D3",1,"Affichage des relevés des décisions du Conseil Communal dans les délai",{"$f":"((Récapitulatif!C51/Récapitulatif!C2)+Récapitulatif!C52)/2","v":1}]
[null,2,"Taux de réalisation des seances de reddition de compte",{"$f":"Récapitulatif!C53/Récapitulatif!C54","v":1}]
[null,3,"Nombre d'actions spécifiques en faveur des femmes au cours de l'année",{"$f":"Récapitulatif!C55/Récapitulatif!C56","v":0.34920634920634919}]
[null,4,"Existance d'un mecanisme d'information du public par rapport aux prestations de la commune",{"$f":"(Récapitulatif!C57+Récapitulatif!C58)/2","v":1}]
[null,5,"Nombre de cadre de concertation fonctionnel",{"$f":"(Récapitulatif!D59+Récapitulatif!D60)/2","v":0.75}]
["D4",1,"Existance d'un SDAC",{"$f":"Récapitulatif!C61","v":1}]
[null,2,"Existance d'un PDC",{"$f":"(Récapitulatif!C62+(Récapitulatif!C64/Récapitulatif!C63))/2","v":1}]
[null,3,"Nombre de reunions de suivi-évaluation du PTA/PAI/PAD",{"$f":"Récapitulatif!C65","v":10}]
[null,4,"Taux d'accroissement des infrastructures économiques et marchandes",{"$f":"(Récapitulatif!C66-Récapitulatif!C67)/Récapitulatif!C67","v":-0.3235294117647059}]
[null,5,"Fonctionalité des organes de gestion fonciere aux niveaux communal et infra communal",{"$f":"((Récapitulatif!C69/Récapitulatif!C68)+(Récapitulatif!C71/Récapitulatif!C70))/2","v":0.81341575091575091}]
[null,6,"Existance d'un tableau de bord social actualisé",{"$f":"Récapitulatif!C72","v":0}]
[null,7,"Nombre d'accord de cooperation decentralisée mise en œuvre ",{"$f":"(Récapitulatif!C75+Récapitulatif!C76)/2","v":0}]
[null,8,"Taux de paiement des cotisations de la commune à l'intercommunalité",{"$f":"IF(Récapitulatif!C45=0,0,Récapitulatif!C44/Récapitulatif!C45)","v":1}]
[null,9,"Nombre de contentieux fonciers impliquant la Mairie",{"$f":"Récapitulatif!D77","v":0.75}]
["D5",1,"Nombre de participations au CDCC",{"$f":"((Récapitulatif!C78/Récapitulatif!C79)+(Récapitulatif!C80/Récapitulatif!C81))/2","v":1}]
[null,2,"Taux de conformité des actes communaux",{"$f":"IF(Récapitulatif!C83=0,0,Récapitulatif!C82/Récapitulatif!C83)","v":0.70833333333333337}]
[null,3,"Transmission du budget dans les délais",{"$f":"SUM(Récapitulatif!C84:C86)/3","v":0.33333333333333331}]
[null,4,"Transmission du compte administratif dans les délais",{"$f":"SUM(Récapitulatif!C87:C89)/3","v":1}]
[null,5,"Animation d'un cadre de concertation entre le maire et les services déconcentrés communaux",{"$f":"(Récapitulatif!E91+Récapitulatif!F91)/2","v":0.875}]